Cogmind - Beta 16 @@@ ROGUE MODE // 2025.11.25 @ 23:36:04 Player: Kat Result: Destroyed by D-53 Grenadier with Mini Grenade Launcher Performance ------------- Evolutions (0) 0 Regions Visited (2) 400 Robots Destroyed (2) 10 Value Destroyed (81) 81 Prototype IDs (0) 0 Alien Tech Used (0) 0 Bonus (-9) -9 TOTAL SCORE: 482 Bonus ------- Friendly Fire -9 Cogmind --------- Core Integrity 0/250 Matter 209/300 Energy 100/100 System Corruption 1% Temperature Cool (0) Movement Core (200) Ox3 Location -10/Mines Parts ------- > --- POWER (1) -------- (None) > --- PROPULSION (2) --- (None) > --- UTILITY (2) ------ Improved Heat Sink Medium Storage Unit > --- WEAPON (2) ------- (None) > --- INVENTORY (10) --- (None) Peak State ------------ > --- POWER ------------ Ion Engine > --- PROPULSION ------- Wheel Compact Wheel > --- UTILITY ---------- Improved Heat Sink Medium Storage Unit > --- WEAPON ----------- Medium Laser Grenade Launcher > --- INVENTORY -------- Heat Sink [Rating: 9] Favorites ----------- Power Ion Engine Engine Ion Engine Propulsion Compact Wheel Wheel Compact Wheel Utility Medium Storage Unit Device Improved Heat Sink Storage Medium Storage Unit Weapon Medium Laser Energy Gun Medium Laser Launcher Grenade Launcher Build | -11 -10 -10 ------- Run | Yrd Mat Min Slots Evolved . | . . . Power . | . . . Propulsion . | . . . Utility . | . . . Weapon . | . . . Parts Attached 11 | 6 3 2 Power 2 | 1 . 1 Engine 2 | 1 . 1 Core . | . . . Reactor . | . . . Propulsion 2 | 2 . . Treads . | . . . Leg . | . . . Wheel 2 | 2 . . Hover . | . . . Flight . | . . . Utility 4 | 1 2 1 Device 2 | . 1 1 Storage 2 | 1 1 . Processor . | . . . Hackware . | . . . Protection . | . . . Artifact . | . . . Weapon 3 | 2 1 . Energy Gun 2 | 2 . . Energy Cannon . | . . . Ballistic Gun . | . . . Ballistic Cannon . | . . . Launcher 1 | . 1 . Special Weapon . | . . . Impact Weapon . | . . . Slashing Weapon . | . . . Piercing Weapon . | . . . Special Melee Weapon . | . . . Unidentified Prototypes . | . . . Parts Lost 5 | . . 5 Power 1 | . . 1 Propulsion 2 | . . 2 Utility . | . . . Weapon 2 | . . 2 Highest Loss Streak 5 | . . 5 To Critical Strikes . | . . . Average Backups . | 1 . . Power . | . . . Propulsion . | . . . Utility . | . . . Weapon . | . . . Tool/Special . | . . . Unused Backups 1 | 1 . . Power 1 | 1 . . Propulsion . | . . . Utility . | . . . Weapon . | . . . Tool/Special . | . . . Average Slot Usage (%) 92 | . 85 100 Engine 14 | . 14 14 Wheel 28 | . 28 28 Device 7 | . . 14 Storage 14 | . 14 14 Energy Gun 15 | . 16 14 Launcher 12 | . 11 14 Peak Build Rating 9 | 6 7 9 Average Rating 6 | 3 6 8 On Entrance 4 | . 6 7 Avg Prop Armor Cover (%) . | . . . Naked Turns . | . . . Heaviest Build 21 | 13 21 21 Greatest Support 26 | 26 26 26 Greatest Overweight (x) 3 | 1 . 3 Average Overweight (x) . | . . . Largest Inventory Capacity 10 | 8 10 10 Average Capacity 8 | 6 8 10 Most Carried 6 | 6 1 2 Average Carried . | 1 . . Final Capacity 10 | 8 10 10 Final Carried . | . . . Class Distribution -------------------- 100% | Mutant Dominant Class ---------------- Mutant | -10/Materials Mutant | -10/Mines Resources | -11 -10 -10 ----------- Run | Yrd Mat Min Matter Collected 324 | 227 44 53 Remotely . | . . . Salvage Created 104 | . 82 22 Parts 4 | . 4 . Haulers Intercepted . | . . . Recyclers Shooed 1 | . . 1 Parts Field Recycled . | . . . Retrieved Matter . | . . . Parts Self-Destructed . | . . . Prevented . | . . . Parts Restored . | . . . Kills | -11 -10 -10 ------- Run | Yrd Mat Min Combat Hostiles Destroyed 6 | . 2 4 Guns 1 | . . 1 AOE 5 | . 2 3 Classes Destroyed 2 | . 1 1 Grunt 2 | . 2 . Assembled 4 | . . 4 Best Kill Streak 4 | . 2 4 Combat Bots Only 4 | . 2 4 Max Kills in Single Turn 2 | . 2 1 Gunslinging . | . . . Exploded 2 | . 2 1 Melee . | . . . Uniques/NPCs Destroyed . | . . . Combat | -11 -10 -10 -------- Run | Yrd Mat Min Hostile Shots Fired 38 | . 7 31 Missed 10 | . 4 6 Hits 28 | . 3 25 Melee 1 | . . 1 Projectile 27 | . 3 24 AOE 1 | . . 1 Damage Taken 569 | . 42 527 Core 256 | . 10 246 Absorbed by Shields . | . . . Core Remaining (%) 100 | 100 . . Volleys Fired 14 | . 5 9 Largest 2 | . 2 2 Hottest 80 | . 80 80 Shots Fired 25 | . 10 15 Gun 14 | . 5 9 Cannon . | . . . Launcher 11 | . 5 6 Special . | . . . Kinetic . | . . . Thermal 14 | . 5 9 Explosive 11 | . 5 6 Electromagnetic . | . . . Robot Hit Streak 3 | . 3 3 Robot Miss Streak 2 | . 2 2 Penetration Max . | . . . Secondary Targets . | . . . Shots Hit Robots 14 | . 4 10 Core Hits 12 | . 3 9 Critical Kills . | . . . Critical Parts Destroyed . | . . . Critical Strikes 3 | . . 3 Burn 3 | . . 3 Melee Attacks . | . . . Impact . | . . . Slashing . | . . . Piercing . | . . . Sneak Attacks . | . . . Combat Hostiles . | . . . Follow-up Attacks . | . . . Damage Inflicted 586 | . 153 433 Guns 100 | . 24 76 Cannons . | . . . Explosions 486 | . 129 357 Melee . | . . . Ramming . | . . . Kinetic . | . . . Thermal 100 | . 24 76 Explosive 486 | . 129 357 Electromagnetic . | . . . Impact . | . . . Slashing . | . . . Piercing . | . . . Highest Corruption 1 | . 1 1 Average Corruption 1 | . 1 1 Corruption Purged . | . . . Corruption Blocked . | . . . Effects 1 | . . 1 Matter Fused 1 | . . 1 Overload Shots . | . . . Overflow Damage 44 | . . 44 Projectiles . | . . . Explosions 44 | . . 44 Melee . | . . . Knockbacks . | . . . Impact . | . . . Kinetic . | . . . Secondary . | . . . Self-Inflicted Damage 102 | . 8 94 Shots 4 | . 1 3 Rammed . | . . . Targets Rammed . | . . . Kicked . | . . . Crushed . | . . . Highest Temperature 66 | . 66 14 Average Temperature 22 | . 29 5 Received Heat Transfer 103 | . 21 82 Siege Activations . | . . . Martial Activations . | . . . Shielding Activations . | . . . Robots Disrupted . | . . . Combat Hostiles . | . . . Robots Corrupted . | . . . Combat Hostiles . | . . . Parts Fried . | . . . Impact Corruptions . | . . . Robots Melted . | . . . Combat Hostiles . | . . . Parts Melted . | . . . Heat Transferred 518 | . 74 444 Parts Sabotaged . | . . . Parts Stolen . | . . . Parts Stripped . | . . . Power Chain Reactions . | . . . Alert | -11 -10 -10 ------- Run | Yrd Mat Min Maximum Alert Level . | . . . Low Security (%) 100 | 100 100 100 Level 1 . | . . . Level 2 . | . . . Level 3 . | . . . Level 4 . | . . . Level 5 . | . . . High Security . | . . . Max Security . | . . . Peak Influence 70 | . 70 36 Initial 23 | . . 23 Average 12 | . 16 13 Influence Increases 111 | . 80 31 Destroy 0b10 Robot/C 40 | . 40 . Destroy Leader 10 | . 10 . Destroy Structure 61 | . 30 31 Influence Decreases 111 | . 20 91 Entered New Map 37 | . . 37 Time Decay 56 | . 20 36 Lost Part 18 | . . 18 Squads Dispatched 1 | . 1 . Investigation 1 | . 1 . Extermination . | . . . Reinforcement . | . . . Assault . | . . . Garrison . | . . . Intercept . | . . . Searches Triggered . | . . . Construction Impeded . | . . . Haulers Reinforced . | . . . Active Scanning Responses . | . . . Cargo Convoy Interrupts . | . . . Stealth | -11 -10 -10 --------- Run | Yrd Mat Min Distress Signals 1 | . 1 . Communications Jammed . | . . . Distress Signals . | . . . Times Spotted 26 | . 3 23 Peak Tracking Total 17 | . 2 17 Tactical Retreats . | . . . Traps | -11 -10 -10 ------- Run | Yrd Mat Min Traps Triggered . | . . . Indirectly . | . . . Trap Hack Attempts . | . . . Triggered . | . . . Disarmed . | . . . Reprogrammed . | . . . Reused . | . . . Traps Extracted . | . . . Installed . | . . . Triggered . | . . . Machines | -11 -10 -10 ---------- Run | Yrd Mat Min Machines Disabled . | . . . Max in Single Turn . | . . . Machines Repaired . | . . . Machines Dismantled . | . . . Machines Sabotaged . | . . . Overloaded Fab Kills . | . . . Hacking | -11 -10 -10 --------- Run | Yrd Mat Min Machines Accessed 1 | . 1 . Terminals 1 | . 1 . Fabricators . | . . . Repair Stations . | . . . Recycling Units . | . . . Scanalyzers . | . . . Garrison Access . | . . . Total Hacks 2 | . 2 . Successful . | . . . Failed 2 | . 2 . Catastrophic 1 | . 1 . Database Lockouts . | . . . Manual . | . . . Terminals 2 | . 2 . Fabricators . | . . . Repair Stations . | . . . Recycling Units . | . . . Scanalyzers . | . . . Garrison Access . | . . . Terminal Hacks . | . . . Fabricator Hacks . | . . . Repair Station Hacks . | . . . Recycling Unit Hacks . | . . . Scanalyzer . | . . . Garrison Access Hacks . | . . . Unauthorized Hacks . | . . . Terminals . | . . . Fabricators . | . . . Repair Stations . | . . . Recycling Units . | . . . Scanalyzers . | . . . Garrison Access . | . . . Data Cores Recovered . | . . . Used . | . . . Hacking Detections 1 | . 1 . Full Trace Events 1 | . 1 . Feedback Events 1 | . 1 . Corruption 1 | . 1 . Feedback Blocked . | . . . Robot Schematics Acquired . | . . . Robots Built . | . . . Authchips . | . . . Time . | . . . Total Robot Build Rating . | . . . Part Schematics Acquired . | . . . Parts Built . | . . . Authchips . | . . . Time . | . . . Total Part Build Rating . | . . . Part Studies Acquired . | . . . Parts Repaired . | . . . Time . | . . . Parts Recycled . | . . . Recycled Matter . | . . . Retrieved Matter . | . . . Retrieved Components . | . . . Parts Scanalyzed . | . . . Part Schematics Acquired . | . . . Parts Damaged . | . . . Bothacking | -11 -10 -10 ------------ Run | Yrd Mat Min Used RIF Installer . | . . . Robots Hacked . | . . . Non-combat . | . . . Combat . | . . . Robot Hacks Applied . | . . . Relay Couplers Released . | . . . Fabnet Peak Effective % . | . . . Robots Rewired . | . . . Allies Hacked . | . . . Hacks Repelled . | . . . Allies | -11 -10 -10 -------- Run | Yrd Mat Min Total Allies . | . . . Largest Group . | . . . Highest-Rated Group . | . . . Highest-Rated Ally . | . . . Total Orders . | . . . Ally Attacks . | . . . Total Damage . | . . . Kills . | . . . Allies Corrupted . | . . . Allies Melted . | . . . Intel | -11 -10 -10 ------- Run | Yrd Mat Min Active Infowar (turns) . | . . . Robot Analysis Total . | . . . Derelict Logs Recovered . | . . . Drone Launches . | . . . Drone Recoveries . | . . . Exploration | -11 -10 -10 ------------- Run | Yrd Mat Min Turns Passed 276 | 48 110 118 Spaces Moved 244 | 51 96 97 Core 29 | 28 . 1 Treads . | . . . Legs . | . . . Wheels 215 | 23 96 96 Hover . | . . . Flight . | . . . Fastest Speed 50 | 50 90 90 Average Speed 86 | 69 90 91 Slowest Speed 200 | 100 90 200 Overloaded Moves . | . . . Propulsion Burnouts . | . . . Robots Hopped . | . . . Potential Cave-ins . | . . . Cave-ins Triggered . | . . . Exploration Rate (%) 15 | 4 17 26 Regions Visited 2 Branch Regions 1 Pre-discovered Areas . | . . . Known Exits Taken . | . . . Unknown Exits Taken 2 | 1 1 . Scrap Searched . | . . . Spaces Dug . | . . . Terrain Destroyed 77 | . 39 38 Melee . | . . . Projectile . | . . . AOE 77 | . 39 38 Terrain Rammed . | . . . Walls Destroyed . | . . . Machines Disabled . | . . . Actions | -11 -10 -10 --------- Run | Yrd Mat Min Total 284 | 63 109 112 Wait . | . . . Move 242 | 50 95 97 Hop . | . . . Pick Up 11 | 6 3 2 Fast Attach 1 | 1 . . Attach 7 | 5 2 . Detach . | . . . Swap 4 | . 2 2 Drop 5 | 1 2 2 Fire 14 | . 5 9 Melee . | . . . Ram . | . . . Kick . | . . . Crush . | . . . Escape Stasis . | . . . Rewire . | . . . Trap . | . . . Miscellaneous . | . . . Route ------- -11/Scrapyard -10/Materials -10/Mines History --------- Turn | Location | Event 21 | -11/Scrapyard | Discovered new exit (range 15) 49 | -11/Scrapyard | Entered Materials 50 | -10/Materials | Met a group of wandering Federalists 91 | -10/Materials | Discovered new exit (range 10) 159 | -10/Materials | Entered Mines 159 | -10/Mines | Accompanied by 2 allies 243 | -10/Mines | Assembled infested the area 269 | -10/Mines | Core integrity fell below 50% 276 | -10/Mines | Core integrity fell below 20% 277 | -10/Mines | Destroyed by D-53 Grenadier with Mini Grenade Launcher Last Messages --------------- 00258_ T-07 Excavator is excavating. 00262_ T-07 Excavator destroyed. 00264_ Destroyed Asb. F-torch. 00264_ as-93738 destroyed. 00264_ Destroyed Asb. F-torch. 00267_ as-33881 suffers critical hit (Burn). 00267_ as-62858 destroyed. 00270_ as-33881 destroyed. 00271_ Wheel destroyed. 00271_ Grenade Launcher destroyed. 00272_ Ion Engine destroyed. 00273_ as-46186 destroyed. 00273_ Med. Laser destroyed. 00274_ C-45 Heavy ARC bursts open, deploying its payload. 00274_ D-53 Grenadier unfolds itself. 00275_ The unstable cave ceiling collapses. 00275_ Com. Wheel destroyed. 00276_ D2-071(g) destroyed. 00277_ as-08176 destroyed. Map ----- +----------------------------------------------------+ | ????????????????????????????????????????????? | | ????????????????????????????????????????????? | | ????????????????????????????????????????????? | | ????????????????????????????????????????????? | | ????????????????????????????????????????????? | | ????????????????????????????????????????????? | | ????????????????????????????????????????????? | | ????????????????????????????????????????????? | | ????????????????????????????????????????????? | | ????????????????????????????????????????????? | | ????????????????????????????????????????????? | | ????????????????????????????????????????????? | | ???????????????##???????????????????????????? | | ??????????? #?## ??????????????????????????? | | ???????????? ## ??????????????????????????? | | ???????????? ??????????????????????????? | | ????????????? aa ??????????????????????????? | | ?????????????? a??????????????????????????? | | ?????????????##a ??????????????????????????? | | ?????????????# aaa##????????????????????????? | | ?????????????# a ####?????????????????????? | | ????????????## ar ??????????????????????? | | ?????????#### a #??????????????????????? | | ?????????# #??????????????????????? | | ??????????#!% #######????????????????? | | ????????????# @ ##???????????????? | | ????????????## %* #???????????????? | | ?????????????## # #dd ####???????????????? | | ??????????????###### ##??????????????????? | | ???????????????????# ##??????????????????? | | ???????????????????# ##### ????????? | | ????????????######## %" ????????? | | ????????????# #??????????? | | ????????????# u #??????????? | | ????????????# ##### #?????????? | | ????????????# #???# ## """ #?????????? | | ????????????# #???## ##?# ""????????????? | | ????????????# #?????###??? ""????????????? | | ?????????#### #???????????? ????????????? | | ?????????# #????????????? ##???????????? | | ?????????# #?????????????? #????????????? | | ????????## #####????????????????????????????? | | ???????## #??????????####??????????????????? | | ???????# #?????????## #####??????????????? | | ???????# ##????????## ???????????????? | | ??????## #?????????# #?????????????????? | | ?????## #???####### ##???????###??????? | | ?????# ##??# ######## ##?????? | | ?????# ##?# ## #?????? | | ?????# ### #### # = #?????? | +----------------------------------------------------+ Best States ------------- Heat Dissipation 39 Energy Generation 10 Energy Capacity 250 Matter Stores 267 Matter Capacity 300 Sight Range 16 Terrain Scan Density 10 Evasion (%) 50 Item Schematics ----------------- None Robot Schematics ------------------ None Fabricated ------------ Nothing Repaired ---------- Nothing Studied --------- None Alien Tech Used ----------------- None Achievements -------------- None Challenges ------------ None Game ------ Seed HypercooledBombardmentPick Manual? 0 Play Time 00:04:58 Cumulative 8.0 hours Start 2025.11.25 @ 23:31:14 End 2025.11.25 @ 23:36:04 Sessions 1 Manual Loads 0 Difficulty Rogue Special Mode None Game No. 32 Rogue 32 Adventurer 0 Explorer 0 Win Type - Total 0 Types 0/0/0/0/0/0/0/0/0/0 Lore% 3 Gallery% 17 Achievement% 10 Wizard Run 0 Options --------- Layout 1 ASCII 0 Keyboard 0 Movement Arrows Keybinds 0 Fullscreen 1 Font 24/Smallcaps Map View 50x35 Zoom Use 0% Tactical HUD 1 Map Filters NONE Filters NONE Steam 1 RUN: 9b33f0d9-e0f6-45ad-ac95-cbc8147a723d